fUSD/lending_fUSD_20260527
["ID","MTS","AMOUNT","RATE_DAILY","PERIOD"]
[423110736,1779856258000,-151.0,0.00039367,30]
[423110742,1779856258000,-351.279491,0.00039367,28]
[423110754,1779856258000,-285.503838,0.00039367,30]
[423110765,1779856258000,-750.770901,0.00039367,30]
[423110745,1779856258000,-258.89401,0.00039367,30]
[423110755,1779856258000,-258.894001,0.00039367,30]
[423110749,1779856258000,-750.770902,0.00039367,30]
[423110751,1779856258000,-389.335521,0.00039367,30]
[423110750,1779856258000,-258.89401,0.00039367,30]
[423110752,1779856258000,-619.889678,0.00039367,30]
[423110753,1779856258000,-750.770902,0.00039367,30]
[423110747,1779856258000,-389.335521,0.00039367,30]
[423110746,1779856258000,-258.89401,0.00039367,30]
[423110744,1779856258000,-314.46,0.00039367,90]
[423110748,1779856258000,-619.889678,0.00039367,30]
[423110809,1779856259000,-263.102146,0.00039367,30]
[423110819,1779856259000,-151.0,0.00039367,30]
[423110820,1779856259000,-151.0,0.00039367,30]
[423110811,1779856259000,-1444.088361,0.00039367,30]
[423110812,1779856259000,-177.311953,0.00039367,30]
[423110813,1779856259000,-2850.704417,0.00039367,30]
[423110814,1779856259000,-1444.088365,0.00039367,30]
[423110818,1779856259000,-151.0,0.00039367,30]
[423110815,1779856259000,-177.311953,0.00039367,30]
[423110827,1779856259000,-1372.983927,0.00039367,30]
[423110817,1779856259000,-151.0,0.00039367,30]
[423110822,1779856259000,-212.821354,0.00039367,7]
[423110825,1779856259000,-212.821362,0.00039367,7]
[423110828,1779856259000,-1372.983927,0.00039367,30]
[423110826,1779856259000,-1372.983927,0.00039367,30]
[423110829,1779856259000,-177.907869,0.00039367,30]
[423110821,1779856259000,-151.0,0.00039367,30]
[423110823,1779856259000,-212.821354,0.00039367,7]
[423110816,1779856259000,-177.311956,0.00039367,30]
[423110810,1779856259000,-2850.704417,0.00039367,30]
[423110795,1779856259000,-1680.748605,0.00039367,30]
[423110803,1779856259000,-1444.088361,0.00039367,30]
[423110832,1779856259000,-177.907869,0.00039367,30]
[423110793,1779856259000,-151.0,0.00039367,30]
[423110792,1779856259000,-661.660662,0.00039367,30]
[423110790,1779856259000,-151.0,0.00039367,30]
[423110791,1779856259000,-1680.7486,0.00039367,30]
[423110794,1779856259000,-290.136989,0.00039367,30]
[423110788,1779856259000,-1680.7486,0.00039367,30]
[423110789,1779856259000,-661.660665,0.00039367,30]
[423110797,1779856259000,-151.0,0.00039367,30]
[423110796,1779856259000,-151.0,0.00039367,30]
[423110799,1779856259000,-151.0,0.00039367,30]
[423110798,1779856259000,-263.102147,0.00039367,30]
[423110801,1779856259000,-151.0,0.00039367,30]
[423110800,1779856259000,-263.102147,0.00039367,30]
[423110808,1779856259000,-177.311953,0.00039367,30]
[423110802,1779856259000,-2850.704417,0.00039367,30]
[423110806,1779856259000,-2850.704417,0.00039367,30]
[423110804,1779856259000,-263.102147,0.00039367,30]
[423110807,1779856259000,-1444.088361,0.00039367,30]
[423110805,1779856259000,-151.0,0.00039367,30]
[423110834,1779856259000,-151.0,0.00039367,30]
[423110824,1779856259000,-212.821354,0.00039367,7]
[423110831,1779856259000,-177.907869,0.00039367,30]
[423110857,1779856259000,-151.0,0.0003938,30]
[423110859,1779856259000,-624.67,0.0003938,30]
[423110858,1779856259000,-1960654.03954147,0.0003938,30]
[423110860,1779856259000,-696.98180984,0.00014189,2]
[423110862,1779856259000,-258.93345682,0.00014189,2]
[423110864,1779856259000,-2282.48282855,0.00014445,2]
[423110866,1779856259000,-236.82,0.00027564,30]
[423110863,1779856259000,-4143.48173334,0.00014189,2]
[423110856,1779856259000,-151.0,0.0003938,30]
[423110865,1779856259000,-4148.45,0.00027397,10]
[423110867,1779856259000,-585.0,0.00033987,30]
[423110869,1779856259000,-484.76763572,0.00035438,2]
[423110870,1779856259000,-310.28230408,0.00035438,2]
[423110874,1779856259000,-3196.68160149,0.0003938,30]
[423110872,1779856259000,-270.85681,0.0003928,2]
[423110875,1779856259000,-933.445,0.0003938,30]
[423110873,1779856259000,-11098.08709364,0.0003938,30]
[423110871,1779856259000,-1592.62,0.00039177,2]
[423110868,1779856259000,-585.0,0.00033987,30]
[423110854,1779856259000,-75326.7104909,0.0003938,28]
[423110861,1779856259000,-319.71,0.00014189,2]
[423110853,1779856259000,-151.0,0.0003938,30]
[423110830,1779856259000,-1372.983919,0.00039367,30]
[423110835,1779856259000,-151.0,0.00039367,30]
[423110855,1779856259000,-151.0,0.0003938,30]
[423110837,1779856259000,-268.384628,0.00039367,30]
[423110839,1779856259000,-268.384628,0.00039367,30]
[423110850,1779856259000,-1773.882055,0.0003938,30]
[423110846,1779856259000,-159.0,0.00039367,120]
[423110840,1779856259000,-268.384628,0.00039367,30]
[423110838,1779856259000,-268.384628,0.00039367,30]
[423110843,1779856259000,-152.0,0.00039367,120]
[423110836,1779856259000,-151.0,0.00039367,30]
[423110842,1779856259000,-157.0,0.00039367,120]
[423110841,1779856259000,-151.0,0.00039367,120]
[423110852,1779856259000,-1773.882052,0.0003938,30]
[423110851,1779856259000,-151.0,0.0003938,30]
[423110848,1779856259000,-1773.882055,0.0003938,30]
[423110833,1779856259000,-177.9078612,0.00039367,30]
[423110844,1779856259000,-185.0,0.00039367,120]
[423110849,1779856259000,-1773.882055,0.0003938,30]
[423110845,1779856259000,-160.0,0.00039367,120]
[423110847,1779856259000,-315.48331409,0.00039379,120]
[423110889,1779856260000,-236.82,0.00028042,30]
[423110890,1779856260000,-210.0,0.00028045,30]
[423110886,1779856260000,-236.82,0.00027883,2]
[423110885,1779856260000,-161.75,0.00027768,7]
[423110887,1779856260000,-210.0,0.00027886,2]
[423110883,1779856260000,-236.82,0.00027723,7]
[423110881,1779856260000,-113.86962146,0.00027568,30]
[423110882,1779856260000,-96.13037854,0.00027568,30]
[423110879,1779856260000,-224.38037854,0.00025082,2]
[423110878,1779856260000,-293.61962146,0.00025082,2]
[423110876,1779856260000,-65.62212146,0.000126,2]
[423110877,1779856260000,-85.37787854,0.000126,2]
[423110888,1779856260000,-161.75,0.00027973,2]
[423110884,1779856260000,-210.0,0.00027727,7]
[423110880,1779856260000,-161.75,0.00027563,30]
[423110892,1779856260000,-236.82,0.00028202,7]
[423110894,1779856260000,-518.0,0.00028313,5]
[423110907,1779856260000,-36.85402146,0.00029,30]
[423110905,1779856260000,-210.0,0.0002884,2]
[423110891,1779856260000,-161.75,0.00028178,30]
[423110904,1779856260000,-236.82,0.0002884,2]
[423110898,1779856260000,-236.82,0.00028521,30]
[423110903,1779856260000,-161.75,0.00028794,30]
[423110901,1779856260000,-236.82,0.0002868,7]
[423110906,1779856260000,-161.79,0.00029,7]
[423110902,1779856260000,-210.0,0.00028681,7]
[423110899,1779856260000,-210.0,0.00028522,30]
[423110895,1779856260000,-236.82,0.00028361,2]
[423110896,1779856260000,-210.0,0.00028363,2]
[423110897,1779856260000,-161.75,0.00028384,7]
[423110893,1779856260000,-210.0,0.00028204,7]
[423110900,1779856260000,-161.75,0.00028589,2]
[423110920,1779856923000,275.48,0.00028059,120]
[423110934,1779857214000,-959.58939474,0.000123,2]
[423110933,1779857214000,-151.0,0.000123,2]
[423110962,1779857432000,-500.0,0.00014088,2]
[423110961,1779857432000,-500.0,0.00014088,2]
[423110963,1779857432000,-500.0,0.00014088,2]
[423110964,1779857432000,-500.0,0.00014088,2]
[423110967,1779857432000,-500.0,0.00014088,2]
[423110966,1779857432000,-500.0,0.00014088,2]
[423110968,1779857432000,-500.0,0.00014088,2]
[423110978,1779857432000,-500.0,0.00014088,2]
[423110971,1779857432000,-500.0,0.00014088,2]
[423110973,1779857432000,-500.0,0.00014088,2]
[423110969,1779857432000,-500.0,0.00014088,2]
[423110972,1779857432000,-500.0,0.00014088,2]
[423110974,1779857432000,-554.11586571,0.00014088,2]
[423110976,1779857432000,-100.07843239,0.00014088,2]
[423110975,1779857432000,-181.21550704,0.00014088,2]
[423110960,1779857432000,-500.0,0.00014088,2]
[423110970,1779857432000,-500.0,0.00014088,2]
[423110959,1779857432000,-500.0,0.00014088,2]
[423110950,1779857432000,-976.52049616,0.00014087,2]
[423110955,1779857432000,-500.0,0.00014088,2]
[423110977,1779857432000,-399.92156761,0.00014088,2]
[423110941,1779857432000,-151.0,0.000121,2]
[423110940,1779857432000,-151.0,0.00012,2]
[423110942,1779857432000,-151.0,0.000122,2]
[423110943,1779857432000,-270.53,0.00013342,2]
[423110944,1779857432000,-194.24080165,0.00013987,2]
[423110945,1779857432000,-250.0,0.00014,2]
[423110947,1779857432000,-150.0,0.00014087,2]
[423110946,1779857432000,-270.53,0.00014044,2]
[423110948,1779857432000,-300.0,0.00014087,2]
[423110949,1779857432000,-223.47950384,0.00014087,2]
[423110952,1779857432000,-500.0,0.00014088,2]
[423110953,1779857432000,-500.0,0.00014088,2]
[423110954,1779857432000,-500.0,0.00014088,2]
[423110951,1779857432000,-500.0,0.00014088,2]
[423110957,1779857432000,-500.0,0.00014088,2]
[423110956,1779857432000,-500.0,0.00014088,2]
[423110958,1779857432000,-500.0,0.00014088,2]
[423110979,1779857432000,-500.0,0.00014088,2]
[423110965,1779857432000,-500.0,0.00014088,2]
[423110982,1779857432000,-500.0,0.00014088,2]
[423111003,1779857432000,-500.0,0.00014288,2]
[423111001,1779857432000,-500.0,0.00014288,2]
[423111004,1779857432000,-240.40731498,0.00014288,2]
[423111006,1779857432000,-255.0,0.00015214,2]
[423111005,1779857432000,-270.53,0.00014746,2]
[423111008,1779857432000,-270.53,0.00015448,2]
[423111007,1779857432000,-420.0,0.00015432,2]
[423111009,1779857432000,-1680.0,0.00015496,2]
[423111013,1779857432000,-168.02,0.00016712,2]
[423111015,1779857432000,-587.0,0.00016905,2]
[423111016,1779857432000,-1431.8947403,0.00016941,2]
[423111011,1779857432000,-270.53,0.0001615,2]
[423111012,1779857432000,-283.0,0.00016425,2]
[423111014,1779857432000,-270.53,0.00016853,2]
[423111017,1779857432000,-2351.0,0.00017045,2]
[423111019,1779857432000,-270.53,0.00018257,2]
[423110980,1779857432000,-500.0,0.00014088,2]
[423111002,1779857432000,-500.0,0.00014288,2]
[423110999,1779857432000,-500.0,0.00014288,2]
[423111010,1779857432000,-300.0,0.00016,2]
[423111000,1779857432000,-500.0,0.00014288,2]
[423110998,1779857432000,-279.21417742,0.00014288,2]
[423110983,1779857432000,-2000.0,0.00014189,2]
[423110984,1779857432000,-552.07278479,0.00014287,2]
[423110981,1779857432000,-500.0,0.00014088,2]
[423110985,1779857432000,-306.5336804,0.00014287,2]
[423110987,1779857432000,-500.0,0.00014287,2]
[423110988,1779857432000,-620.85690103,0.00014288,2]
[423110990,1779857432000,-500.0,0.00014288,2]
[423110991,1779857432000,-500.0,0.00014288,2]
[423110989,1779857432000,-500.0,0.00014288,2]
[423110986,1779857432000,-500.0,0.00014287,2]
[423110994,1779857432000,-500.0,0.00014288,2]
[423111018,1779857432000,-270.53,0.00017555,2]
[423110992,1779857432000,-500.0,0.00014288,2]
[423110996,1779857432000,-500.0,0.00014288,2]
[423110993,1779857432000,-500.0,0.00014288,2]
[423110995,1779857432000,-474.79,0.00014288,2]
[423110997,1779857432000,-500.0,0.00014288,2]
[423111052,1779857433000,-500.0,0.00026274,2]
[423111049,1779857433000,-270.53,0.00025981,2]
[423111048,1779857433000,-185.27268104,0.000253,2]
[423111051,1779857433000,-166.66,0.0002616,30]
[423111045,1779857433000,-166.66,0.00025273,30]
[423111043,1779857433000,-519.0,0.00025082,2]
[423111047,1779857433000,-1596.97453841,0.000253,2]
[423111054,1779857433000,-270.53,0.00026683,2]
[423111050,1779857433000,-1000.0,0.00026,2]
[423111053,1779857433000,-1439.91,0.00026637,2]
[423111064,1779857433000,-184.1,0.00027683,30]
[423111060,1779857433000,-591.37,0.00027417,2]
[423111057,1779857433000,-1793.35,0.00027397,10]
[423111055,1779857433000,-166.66,0.00027047,30]
[423111059,1779857433000,-3469.62,0.00027397,10]
[423111058,1779857433000,-4163.54,0.00027397,10]
[423111061,1779857433000,-150.0,0.00027476,2]
[423111063,1779857433000,-194.24080165,0.0002767,2]
[423111066,1779857433000,-187.26,0.00027702,2]
[423111046,1779857433000,-270.53,0.00025279,2]
[423111056,1779857433000,-167.48,0.00027343,2]
[423111044,1779857433000,-247.79819547,0.00025184,2]
[423111022,1779857433000,-270.53,0.00019661,2]
[423111040,1779857433000,-1596.97453841,0.00025,2]
[423111021,1779857433000,-270.53,0.00018959,2]
[423111020,1779857433000,-1612.0,0.0001875,2]
[423111065,1779857433000,-178.15,0.00027694,30]
[423111023,1779857433000,-270.53,0.00020364,2]
[423111024,1779857433000,-270.53,0.00021066,2]
[423111025,1779857433000,-270.53,0.00021768,2]
[423111027,1779857433000,-270.53,0.00023172,2]
[423111028,1779857433000,-270.53,0.00023874,2]
[423111029,1779857433000,-1596.97453841,0.000243,2]
[423111042,1779857433000,-185.27268104,0.00025,2]
[423111030,1779857433000,-163.78317572,0.000243,2]
[423111032,1779857433000,-1596.97453841,0.000245,2]
[423111031,1779857433000,-185.27268104,0.000243,2]
[423111034,1779857433000,-32.14809068,0.000245,2]
[423111035,1779857433000,-185.27268104,0.000245,2]
[423111038,1779857433000,-163.78317572,0.000248,2]
[423111036,1779857433000,-270.53,0.00024577,2]
[423111039,1779857433000,-185.27268104,0.000248,2]
[423111037,1779857433000,-1596.97453841,0.000248,2]
[423111041,1779857433000,-163.78317572,0.00025,2]
[423111033,1779857433000,-131.63508504,0.000245,2]
[423111062,1779857433000,-150.0,0.00027521,2]
[423111026,1779857433000,-270.53,0.0002247,2]
[423111068,1779857433000,-186.13,0.00027725,30]
[423111094,1779857433000,-316.75050505,0.00029,2]
[423111098,1779857433000,-638.86,0.00029434,120]
[423111099,1779857433000,-591.37,0.00029474,2]
[423111095,1779857433000,-165.76,0.00029023,120]
[423111097,1779857433000,-256.72,0.00029342,2]
[423111096,1779857433000,-402.67,0.000291,2]
[423111100,1779857433000,-173.2154134,0.000295,2]
[423111102,1779857433000,-257.96252232,0.000295,2]
[423111101,1779857433000,-173.21541339,0.000295,2]
[423111093,1779857433000,-526.25155808,0.00029,2]
[423111104,1779857433000,-161.0,0.0002969,30]
[423111105,1779857433000,-1000.0,0.00029791,2]
[423111108,1779857433000,-7579.32670824,0.0003,2]
[423111113,1779857433000,-5964.5838962,0.0003062,2]
[423111067,1779857433000,-193.92,0.00027714,2]
[423111109,1779857433000,-591.37,0.00030159,2]
[423111110,1779857433000,-299.99,0.0003062,12]
[423111111,1779857433000,-999.99,0.0003062,2]
[423111107,1779857433000,-160.0,0.0003,2]
[423111112,1779857433000,-9999.99,0.0003062,2]
[423111103,1779857433000,-213.89808373,0.00029662,2]
[423111092,1779857433000,-260.66,0.00029,2]
[423111106,1779857433000,-166.46,0.00029877,2]
[423111091,1779857433000,-260.67,0.00029,2]
[423111090,1779857433000,-260.67,0.00029,2]
[423111069,1779857433000,-186.47,0.00027736,30]
[423111073,1779857433000,-180.92,0.00027757,30]
[423111071,1779857433000,-187.37,0.00027752,30]
[423111070,1779857433000,-178.84,0.0002774,30]
[423111072,1779857433000,-200.0,0.00027756,2]
[423111074,1779857433000,-189.18,0.0002777,30]
[423111078,1779857433000,-151.1977421,0.0002808,2]
[423111077,1779857433000,-200.0,0.0002808,2]
[423111076,1779857433000,-200.0,0.0002808,2]
[423111075,1779857433000,-166.66,0.00027934,30]
[423111080,1779857433000,-591.37,0.00028103,2]
[423111081,1779857433000,-175.6,0.0002815,2]
[423111084,1779857433000,-178.15,0.00028347,7]
[423111086,1779857433000,-2500.0,0.00029,2]
[423111083,1779857433000,-184.1,0.00028341,7]
[423111085,1779857433000,-591.37,0.00028788,2]
[423111082,1779857433000,-519.0,0.00028313,5]
[423111087,1779857433000,-175.36,0.00029,2]
[423111088,1779857433000,-260.67,0.00029,2]
[423111089,1779857433000,-260.67,0.00029,2]
[423111079,1779857433000,-196.56334483,0.00028082,3]
[423111115,1779857434000,-900.0,0.0003062,2]
[423111118,1779857434000,-846.20610385,0.0003062,2]
[423111114,1779857434000,-2289.19999995,0.0003062,2]
[423111121,1779857434000,-5366.93160449,0.0003062,2]
[423111120,1779857434000,-235.00797662,0.0003062,2]
[423111122,1779857434000,-1329.72644745,0.0003062,2]
[423111119,1779857434000,-981.83202338,0.0003062,2]
[423111170,1779857438000,-3548.0,0.00032294,2]
[423111168,1779857438000,-169.768,0.00032243,31]
[423111167,1779857438000,-1533.164,0.00032243,31]
[423111165,1779857438000,-194.25778936,0.00032,120]
[423111166,1779857438000,-447.13785225,0.00032,120]
[423111164,1779857438000,-179.51154846,0.00032,120]
[423111163,1779857438000,-164.94995374,0.00032,120]
[423111162,1779857438000,-175.99507839,0.00032,120]
[423111161,1779857438000,-162.0,0.0003169,30]
[423111160,1779857438000,-275.48,0.00031566,120]
[423111158,1779857438000,-315.6479874,0.00031161,2]
[423111159,1779857438000,-519.0,0.00031543,8]
[423111157,1779857438000,-161.0,0.0003069,30]
[423111155,1779857438000,-150.99,0.0003062,2]
[423111152,1779857438000,-186.08,0.00029,2]
[423111154,1779857438000,-13310.06194806,0.0003062,2]
[423111151,1779857438000,-189.64,0.00029,7]
[423111153,1779857438000,-185.61,0.00029,7]
[423111150,1779857438000,-186.08,0.00028336,7]
[423111149,1779857438000,-189.63,0.00027721,30]
[423111147,1779857438000,-187.42,0.00027689,2]
[423111148,1779857438000,-185.61,0.00027711,30]
[423111146,1779857438000,-186.08,0.00027672,30]
[423111144,1779857438000,-410.14174005,0.00015856,2]
[423111145,1779857438000,-281.14,0.00024658,2]
[423111156,1779857438000,-9999.99,0.0003062,2]
[423111169,1779857438000,-2891.35,0.00032289,10]
[423111171,1779857438000,-1357.315,0.00032294,2]
[423111174,1779857438000,-200.0,0.00032294,2]
[423111172,1779857438000,-1272.0,0.00032294,2]
[423111200,1779857438000,-1228.66551683,0.00032299,2]
[423111198,1779857438000,-390.97968897,0.00032299,2]
[423111197,1779857438000,-1228.66551683,0.00032299,2]
[423111201,1779857438000,-1228.66551683,0.00032299,2]
[423111195,1779857438000,-351.3128899,0.00032299,2]
[423111196,1779857438000,-395.49872739,0.00032299,2]
[423111192,1779857438000,-500.0,0.00032299,2]
[423111194,1779857438000,-1228.66551683,0.00032299,2]
[423111190,1779857438000,-500.0,0.00032299,2]
[423111193,1779857438000,-500.0,0.00032299,2]
[423111191,1779857438000,-1228.66551683,0.00032299,2]
[423111188,1779857438000,-500.0,0.00032299,2]
[423111199,1779857438000,-1228.66551683,0.00032299,2]
[423111189,1779857438000,-511.03983452,0.00032299,2]
[423111173,1779857438000,-525.0,0.00032294,2]
[423111175,1779857438000,-220.0,0.00032294,2]
[423111177,1779857438000,-931.0,0.00032294,2]
[423111179,1779857438000,-150.383,0.00032294,2]
[423111186,1779857438000,-480.43840348,0.00032299,2]
[423111178,1779857438000,-150.0,0.00032294,2]
[423111180,1779857438000,-3650.053,0.00032294,2]
[423111182,1779857438000,-500.0,0.00032299,2]
[423111181,1779857438000,-500.0,0.00032299,2]
[423111184,1779857438000,-500.0,0.00032299,2]
[423111183,1779857438000,-185.62627352,0.00032299,2]
[423111185,1779857438000,-1228.66551683,0.00032299,2]
[423111176,1779857438000,-150.34,0.00032294,2]
[423111281,1779857439000,-179.51154846,0.00033,120]
[423111278,1779857439000,-1228.66551683,0.00032299,2]
[423111279,1779857439000,-152.0,0.00032321,7]
[423111277,1779857439000,-1228.66551683,0.00032299,2]
[423111260,1779857439000,-1228.66551683,0.00032299,2]
[423111276,1779857439000,-1228.66551683,0.00032299,2]
[423111272,1779857439000,-1228.66551683,0.00032299,2]
[423111269,1779857439000,-1228.66551683,0.00032299,2]
[423111271,1779857439000,-1228.66551683,0.00032299,2]
[423111262,1779857439000,-1228.66551683,0.00032299,2]
[423111274,1779857439000,-1228.66551683,0.00032299,2]
[423111280,1779857439000,-912.0,0.000325,2]
[423111287,1779857439000,-500.0,0.00034915,2]
[423111282,1779857439000,-447.13785225,0.00033,120]
[423111284,1779857439000,-447.13785225,0.000339,120]
[423111288,1779857439000,-500.0,0.00034915,2]
[423111286,1779857439000,-519.0,0.00034774,12]
[423111289,1779857439000,-500.0,0.00034915,2]
[423111285,1779857439000,-2000.0,0.00034712,30]
[423111292,1779857439000,-500.0,0.00034915,2]
[423111290,1779857439000,-500.0,0.00034915,2]
[423111291,1779857439000,-500.0,0.00034915,2]
[423111295,1779857439000,-500.0,0.00034915,2]
[423111294,1779857439000,-500.0,0.00034915,2]
[423111265,1779857439000,-1228.66551683,0.00032299,2]
[423111283,1779857439000,-638.86,0.00033113,120]
[423111267,1779857439000,-1228.66551683,0.00032299,2]
[423111240,1779857439000,-1228.66551683,0.00032299,2]
[423111256,1779857439000,-1228.66551683,0.00032299,2]
[423111202,1779857439000,-1228.66551683,0.00032299,2]
[423111204,1779857439000,-1228.66551683,0.00032299,2]
[423111206,1779857439000,-1228.66551683,0.00032299,2]
[423111216,1779857439000,-1228.66551683,0.00032299,2]
[423111209,1779857439000,-1228.66551683,0.00032299,2]
[423111213,1779857439000,-1228.66551683,0.00032299,2]
[423111211,1779857439000,-1228.66551683,0.00032299,2]
[423111222,1779857439000,-1228.66551683,0.00032299,2]
[423111218,1779857439000,-1228.66551683,0.00032299,2]
[423111224,1779857439000,-1228.66551683,0.00032299,2]
[423111293,1779857439000,-500.0,0.00034915,2]
[423111226,1779857439000,-1228.66551683,0.00032299,2]
[423111228,1779857439000,-1228.66551683,0.00032299,2]
[423111230,1779857439000,-1228.66551683,0.00032299,2]
[423111242,1779857439000,-1228.66551683,0.00032299,2]
[423111232,1779857439000,-1228.66551683,0.00032299,2]
[423111235,1779857439000,-1228.66551683,0.00032299,2]
[423111234,1779857439000,-1228.66551683,0.00032299,2]
[423111238,1779857439000,-1228.66551683,0.00032299,2]
[423111244,1779857439000,-1228.66551683,0.00032299,2]
[423111254,1779857439000,-1228.66551683,0.00032299,2]
[423111250,1779857439000,-1228.66551683,0.00032299,2]
[423111248,1779857439000,-1228.66551683,0.00032299,2]
[423111246,1779857439000,-1228.66551683,0.00032299,2]
[423111252,1779857439000,-1228.66551683,0.00032299,2]
[423111258,1779857439000,-1228.66551683,0.00032299,2]
[423111296,1779857439000,-500.0,0.00034915,2]
[423111220,1779857439000,-1228.66551683,0.00032299,2]
[423111300,1779857439000,-500.0,0.00034915,2]
[423111331,1779857439000,-4094.0763927,0.00035279,2]
[423111330,1779857439000,-275.48,0.00035073,120]
[423111333,1779857439000,-3548.0,0.00035294,2]
[423111332,1779857439000,-944.48,0.00035283,2]
[423111329,1779857439000,-6809.6993,0.00035064,2]
[423111334,1779857439000,-1356.0,0.00035294,2]
[423111336,1779857439000,-446.781,0.00035294,2]
[423111338,1779857439000,-150.0,0.00035294,2]
[423111337,1779857439000,-150.0,0.00035294,2]
[423111335,1779857439000,-1270.0,0.00035294,2]
[423111339,1779857439000,-627.845,0.00035294,2]
[423111343,1779857439000,-300.0,0.00035379,2]
[423111328,1779857439000,-1006.0,0.00035,2]
[423111342,1779857439000,-3637.0,0.00035294,2]
[423111344,1779857439000,-300.0,0.00035379,2]
[423111341,1779857439000,-150.0,0.00035294,2]
[423111346,1779857439000,-300.0,0.00035379,2]
[423111348,1779857439000,-300.0,0.00035379,2]
[423111347,1779857439000,-300.0,0.00035379,2]
[423111350,1779857439000,-300.0,0.00035379,2]
[423111349,1779857439000,-300.0,0.00035379,2]
[423111352,1779857439000,-300.0,0.00035379,2]
[423111351,1779857439000,-300.0,0.00035379,2]
[423111353,1779857439000,-300.0,0.00035379,2]
[423111354,1779857439000,-300.0,0.00035379,2]
[423111297,1779857439000,-500.0,0.00034915,2]
[423111345,1779857439000,-300.0,0.00035379,2]
[423111324,1779857439000,-10128.22507858,0.00034973,2]
[423111340,1779857439000,-150.0,0.00035294,2]
[423111321,1779857439000,-150.0,0.00034915,7]
[423111298,1779857439000,-500.0,0.00034915,2]
[423111326,1779857439000,-447.13785225,0.00035,120]
[423111299,1779857439000,-500.0,0.00034915,2]
[423111301,1779857439000,-500.0,0.00034915,2]
[423111304,1779857439000,-150.0,0.00034915,2]
[423111302,1779857439000,-500.0,0.00034915,2]
[423111303,1779857439000,-442.51157974,0.00034915,2]
[423111306,1779857439000,-150.0,0.00034915,2]
[423111307,1779857439000,-500.0,0.00034915,2]
[423111308,1779857439000,-150.0,0.00034915,2]
[423111309,1779857439000,-508.00396675,0.00034915,2]
[423111310,1779857439000,-277.82456961,0.00034915,2]
[423111312,1779857439000,-150.0,0.00034915,7]
[423111305,1779857439000,-150.0,0.00034915,2]
[423111315,1779857439000,-150.0,0.00034915,7]
[423111322,1779857439000,-215.46156935,0.00034962,7]
[423111311,1779857439000,-150.0,0.00034915,7]
[423111325,1779857439000,-980.0,0.00035,5]
[423111327,1779857439000,-653.0,0.00035,2]
[423111320,1779857439000,-150.0,0.00034915,7]
[423111317,1779857439000,-150.0,0.00034915,7]
[423111323,1779857439000,-13868.12159531,0.00034963,2]
[423111318,1779857439000,-150.0,0.00034915,7]
[423111316,1779857439000,-150.0,0.00034915,7]
[423111314,1779857439000,-150.0,0.00034915,7]
[423111313,1779857439000,-150.0,0.00034915,7]
[423111319,1779857439000,-202.95494596,0.00034915,7]
[423111393,1779857440000,-300.0,0.00035379,2]
[423111399,1779857440000,-310.02493426,0.00035379,2]
[423111396,1779857440000,-300.09384644,0.00035379,2]
[423111394,1779857440000,-300.0,0.00035379,2]
[423111398,1779857440000,-1148.83589152,0.00035379,2]
[423111390,1779857440000,-527.62572404,0.00035379,2]
[423111392,1779857440000,-300.0,0.00035379,2]
[423111387,1779857440000,-1263.96825586,0.00035379,2]
[423111389,1779857440000,-344.45437934,0.00035379,2]